bitfinex/quotes_ETHUSD_20250404
["timestamp","ask_amount","ask_price","bid_price","bid_amount"]
[1743782927399,5.56205,1797.9,1797.6,0.7849]
[1743782927715,5.56253,1797.8,1797.4,5.56352]
[1743782928001,5.56237,1797.8,1797.4,11.12688]
[1743782928182,5.56237,1797.8,1797.3,0.7632]
[1743782928183,5.56269,1797.7,1797.3,6.32707]
[1743782928383,5.56301,1797.6,1797.3,6.32707]
[1743782928707,5.56243,1797.8,1797.4,11.12694]
[1743782928898,8.56206,1797.9,1797.5,5.56327]
[1743782929078,12.07875,1798.0,1797.6,5.56275]
[1743782929278,12.07883,1798.0,1797.6,5.56275]
[1743782929479,12.07883,1798.0,1797.6,11.12556]
[1743782929684,5.56252,1797.8,1797.4,11.1268]
[1743782929886,5.56231,1797.9,1797.5,5.56323]
[1743782930118,7.326417,1797.9,1797.5,5.56323]
[1743782930408,6.517,1798.0,1797.7,5.56259]
[1743782930571,6.517,1798.0,1797.4,5.56359]
[1743782930777,12.07876,1798.0,1797.7,5.56263]
[1743782931008,8.56145,1798.1,1797.7,5.56254]
[1743782931174,5.56053,1798.4,1798.0,5.56158]
[1743782931378,6.516,1798.3,1798.0,5.56157]
[1743782931595,6.516,1798.3,1798.1,5.5613]
[1743782931975,6.516,1798.3,1798.2,5.56111]
[1743782932175,30.59072,1798.7,1798.3,5.56068]
[1743782932176,6.516,1798.6,1798.3,5.56068]
[1743782932425,5.56029,1798.5,1798.1,5.56132]
[1743782932655,5.56067,1798.4,1798.0,5.5617]
[1743782932913,11.12058,1798.5,1798.1,5.5614]
[1743782933098,5.56019,1798.5,1798.1,11.12263]
[1743782933294,5.56019,1798.5,1798.1,5.56123]
[1743782933595,5.5605,1798.4,1798.1,5.56123]
[1743782933805,14.12057,1798.5,1798.1,5.5612]
[1743782934111,5.56058,1798.4,1798.1,5.5612]
[1743782934279,5.56111,1798.2,1797.9,5.56201]
[1743782934480,5.56091,1798.3,1797.9,5.5619]
[1743782934907,5.56077,1798.4,1797.7,6.914494]
[1743782935107,8.5602,1798.5,1798.1,5.56138]
[1743782935312,3.0,1798.5,1798.3,5.56079]
[1743782935673,3.0,1798.5,1798.2,5.56099]
[1743782935880,5.56057,1798.4,1798.0,5.56156]
[1743782936177,1.406057,1798.4,1797.7,1.351954]
[1743782936419,5.56216,1797.9,1797.5,5.56312]
[1743782936709,6.513,1797.8,1797.7,5.56266]
[1743782936907,6.513,1797.8,1797.6,5.56279]
[1743782936908,6.513,1798.0,1797.9,11.12368]
[1743782937111,3.0,1798.2,1798.0,5.5617]
[1743782937411,15.07429,1798.2,1797.8,6.38461]
[1743782937595,5.56183,1798.0,1797.7,5.56261]
[1743782937909,5.56183,1798.0,1797.4,0.7884]
[1743782937910,5.56246,1797.8,1797.5,5.56324]
[1743782938086,5.56246,1797.8,1797.4,11.91536]
[1743782938290,5.56246,1797.8,1797.5,5.56315]
[1743782938711,5.56205,1797.9,1797.5,11.12631]
[1743782938712,5.56209,1797.9,1797.5,11.12631]
[1743782939006,5.56237,1797.8,1797.4,7.543416]
[1743782939306,5.69213338,1797.6,1797.3,5.56377]
[1743782939510,5.69213338,1797.6,1797.3,6.120147]
[1743782939817,5.69213338,1797.6,1797.3,11.683867]
[1743782940106,5.69213338,1797.6,1797.2,5.56415]
[1743782940107,11.25537338,1797.6,1797.2,5.56415]
[1743782940310,5.56434,1797.2,1796.8,5.56533]
[1743782940507,6.512,1797.1,1796.9,5.56495]
[1743782940707,6.512,1797.1,1797.0,5.56483]
[1743782941016,6.512,1797.4,1797.3,5.56383]
[1743782941217,5.69213338,1797.6,1797.5,5.56328]
[1743782941514,5.69213338,1797.6,1797.3,5.56387]
[1743782941814,5.69213338,1797.6,1797.3,11.12759]
[1743782942012,8.56225,1797.9,1797.5,5.5631]
[1743782942308,6.512,1798.0,1797.7,5.56246]
[1743782942496,6.512,1798.0,1797.7,5.56256]
[1743782942807,5.56156,1798.1,1797.7,1.112548]
[1743782943017,5.56237,1797.8,1797.4,5.56357]
[1743782943213,5.56381,1797.4,1797.0,5.56478]
[1743782943407,5.56339,1797.5,1797.0,5.56471]
[1743782943579,5.563,1797.6,1797.2,5.56394]
[1743782943781,8.56268,1797.7,1797.3,5.5639]
[1743782944009,3.0,1797.7,1796.9,5.56513]
[1743782944214,8.56267,1797.7,1797.4,5.56358]
[1743782944586,6.512,1797.8,1797.5,11.12652]
[1743782944787,6.512,1797.8,1797.4,5.56352]
[1743782945004,5.56297,1797.6,1797.2,5.56404]
[1743782945204,3.0,1797.7,1797.0,0.556513]
[1743782945205,5.56346,1797.5,1797.1,5.5644]
[1743782945398,11.12694,1797.5,1797.1,5.5644]
[1743782945710,0.55,1797.6,1796.9,5.56511]
[1743782945907,5.564,1797.3,1796.9,5.56511]
[1743782946112,5.56424,1797.2,1796.8,6.33874]
[1743782946315,5.56465,1797.1,1796.7,5.56571]
[1743782946491,5.56496,1797.0,1796.7,5.56571]
[1743782946680,5.56452,1797.1,1796.7,5.5656]
[1743782946881,11.12866,1797.2,1796.8,5.5654]
[1743782947200,5.56422,1797.2,1796.8,11.13053]
[1743782947403,5.56422,1797.2,1796.3,7.09012334]
[1743782947404,12.07494,1797.3,1797.0,5.56481]
[1743782947613,12.07369,1797.7,1797.3,5.56368]
[1743782947788,6.511,1797.7,1797.2,5.56421]
[1743782947991,6.511,1797.7,1797.3,0.61205083]
[1743782948188,12.07345,1798.1,1797.7,5.56247]
[1743782948427,5.56252,1797.8,1797.4,5.56355]
[1743782948715,5.56252,1797.8,1797.4,5.56341]
[1743782948893,5.56283,1797.7,1797.3,6.120211]
[1743782949094,11.12514,1797.8,1797.4,5.56343]
[1743782949296,5.56252,1797.8,1797.4,5.56357]
[1743782949630,5.56343,1797.5,1797.1,5.56449]
[1743782949922,5.56444,1797.2,1796.4,10.68277558]
[1743782950217,5.56444,1797.2,1796.8,5.56514]
[1743782950416,5.56467,1797.1,1796.7,5.56575]
[1743782950623,8.56401,1797.3,1796.6,5.56606]
[1743782950819,8.56401,1797.3,1796.9,5.5649]
[1743782951017,8.56401,1797.3,1797.0,5.56482]
[1743782951221,6.511,1797.4,1797.1,5.56436]
[1743782951422,6.511,1797.4,1797.0,5.56478]
[1743782951614,5.56423,1797.2,1796.9,5.56509]
[1743782951789,5.56392,1797.3,1796.9,6.678021]
[1743782952122,12.07472,1797.4,1797.0,5.56464]
[1743782952416,6.511,1797.4,1797.1,5.5644]
[1743782952635,6.511,1797.4,1797.2,5.56413]
[1743782952789,6.511,1797.4,1797.2,5.5641]
[1743782952989,5.56443,1797.2,1796.8,5.56524]
[1743782953239,12.07472,1797.4,1797.0,5.56458]
[1743782953422,12.07472,1797.4,1797.1,5.5644]
[1743782953623,5.56329,1797.5,1797.1,5.56436]
[1743782953923,5.56282,1797.7,1797.2,5.56403]
[1743782954122,5.563,1797.6,1797.3,6.120193]
[1743782954422,5.56282,1797.7,1797.1,5.56441]
[1743782954423,5.97779899,1797.7,1797.1,5.56441]
[1743782954623,11.12702,1797.5,1797.1,5.56441]
[1743782954792,14.12617,1797.6,1797.2,5.56402]
[1743782955121,8.56298,1797.6,1797.3,5.56374]
[1743782955334,12.074,1797.6,1797.3,5.56374]
[1743782955537,8.5624,1797.8,1797.3,1.112793]
[1743782955705,6.511,1797.8,1797.5,11.12632]
[1743782955908,29.19377558,1798.4,1797.6,11.12563]
[1743782955909,25.022,1798.4,1797.6,11.12563]
[1743782956101,5.56184,1798.0,1797.7,5.56263]
[1743782956409,5.56184,1798.0,1797.6,5.56277]
[1743782956410,17.63196,1798.3,1797.9,5.56187]
[1743782956613,5.56113,1798.2,1797.9,5.56187]
[1743782957221,12.62785,1798.3,1798.0,5.56164]
[1743782957222,6.51,1798.3,1798.0,5.56164]
[1743782957420,5.5612,1798.2,1797.8,5.56229]
[1743782957632,12.07111,1798.3,1798.0,5.56159]
[1743782957804,12.07099,1798.3,1797.9,11.12395]
[1743782958010,12.07099,1798.3,1797.9,5.56193]
[1743782958214,11.12244,1798.2,1797.9,1.112423]
[1743782958414,5.56182,1798.0,1797.6,5.56293]
[1743782958623,6.51,1798.3,1797.6,5.56281]
[1743782958624,5.56155,1798.1,1797.6,5.56281]
[1743782958909,5.56316,1797.6,1797.2,5.56399]
[1743782959113,5.56435,1797.2,1796.8,6.7340756]
[1743782959438,5.56624,1796.6,1796.2,5.56712]
[1743782959656,6.509,1796.5,1796.1,0.05]
[1743782959855,9.1173,1796.2,1796.1,0.05]
[1743782960153,13.28907558,1796.2,1796.1,1e-05]
[1743782960661,5.5704,1795.2,1795.1,0.05]
[1743782960809,6.509,1795.2,1795.1,0.05]
[1743782961167,12.6294,1795.2,1795.1,0.05]
[1743782961362,5.56621,1796.6,1795.3,3.0]
[1743782961522,4.17177558,1796.4,1795.6,5.56892]
[1743782961869,5.56763,1796.1,1795.7,5.56873]
[1743782962161,5.56873,1795.8,1795.3,5.56996]
[1743782962325,5.56873,1795.8,1795.2,5.57021]
[1743782962502,5.56873,1795.8,1795.2,5.57015]
[1743782962709,1.168696,1795.8,1795.4,5.56965]
[1743782962914,3.0,1795.7,1795.2,5.57025]
[1743782963164,6.509,1795.6,1795.1,5.62071]
[1743782963323,6.509,1795.6,1795.1,0.05]
[1743782963640,3.0,1795.2,1795.1,0.05]
[1743782963815,9.427419,1795.2,1795.1,0.05]
[1743782964342,9.51,1795.2,1795.1,0.05]
[1743782964646,15.6304,1795.2,1795.1,0.05]
[1743782965443,16.05288404,1795.2,1795.1,0.05]
[1743782966143,9.12134,1794.9,1794.8,0.8185]
[1743782966469,0.55,1794.2,1794.1,0.05]
[1743782966631,0.55,1794.2,1793.3,5.57618]
[1743782966632,0.55,1793.9,1793.3,5.57618]
[1743782966948,0.55,1794.1,1793.2,4.47694999]
[1743782967109,3.55,1794.6,1793.6,5.57522]
[1743782967308,0.55,1794.1,1793.1,10.15958496]
[1743782967540,0.55,1794.1,1793.7,5.57481]
[1743782967541,6.512,1794.0,1793.7,5.57481]
[1743782967763,3.0,1794.1,1793.8,5.5746]
[1743782967963,6.12461,1793.9,1793.5,5.5756]
[1743782968139,3.55,1793.9,1793.1,1.0659585]
[1743782968334,3.55,1793.9,1793.1,0.05]
[1743782968539,0.55,1793.5,1793.1,0.05]
[1743782968898,6.512,1793.7,1793.3,5.57618]
[1743782969175,0.55,1793.2,1793.1,0.05]
[1743782969384,9.12631,1793.3,1793.2,0.8188]
[1743782969594,17.411564,1793.3,1793.2,0.8188]
[1743782969890,9.12662,1793.2,1793.1,0.05]
[1743782970071,5.57755,1792.9,1792.8,0.8188]
[1743782970242,9.12848,1792.6,1792.5,0.7556]
[1743782970443,5.5788,1792.5,1792.1,0.8056]
[1743782970660,3.0,1792.4,1792.1,0.8056]
[1743782970872,8.57931,1792.4,1792.1,0.8056]
[1743782971074,5.57896,1792.5,1792.1,0.8056]
[1743782971276,6.514,1792.7,1792.2,0.7964]
[1743782971575,6.514,1792.7,1792.3,11.15876]
[1743782971775,6.514,1792.7,1792.3,5.57918]
[1743782971971,3.0,1793.1,1792.7,0.815]
[1743782972191,3.0,1793.1,1792.7,6.39299]
[1743782972192,8.57694,1793.1,1792.7,6.39299]
[1743782972472,0.55,1793.0,1792.7,0.815]
[1743782972679,3.55,1792.7,1792.2,0.8253]
[1743782972849,3.55,1792.7,1792.1,0.05]
[1743782972850,5.57973,1792.2,1792.1,0.05]
[1743782973051,5.58143,1791.7,1791.5,0.8253]
[1743782973359,12.6486,1791.6,1791.5,0.8253]
[1743782973541,10.067,1791.6,1791.5,0.8253]
[1743782973744,6.517,1791.9,1791.6,5.58137]
[1743782973999,3.0,1792.7,1792.2,5.57959]
[1743782974273,8.57894,1792.5,1792.1,5.57997]
[1743782974473,0.55,1792.4,1791.9,0.7796]
[1743782974638,0.55,1792.1,1791.9,0.7796]
[1743782974843,0.55,1792.1,1791.7,5.58128]
[1743782974844,0.55,1791.9,1791.5,0.7925]
[1743782975041,6.517,1791.8,1791.5,0.7925]
[1743782975299,7.067,1792.2,1791.6,0.7933]
[1743782975495,7.067,1792.2,1791.7,5.58129]
[1743782975702,7.067,1792.2,1791.5,5.58188]
[1743782975703,6.517,1792.7,1792.1,0.7522]
[1743782975901,6.517,1793.0,1792.6,0.7522]
[1743782976196,6.517,1793.0,1792.1,0.7576]
[1743782976197,5.57755,1792.9,1792.1,0.7576]
[1743782976350,6.13017,1792.1,1791.6,5.58131]
[1743782976553,6.13017,1792.1,1791.7,6.33869]
[1743782976554,0.55,1791.9,1791.7,6.33869]
[1743782976900,10.082,1792.2,1791.8,11.16163]
[1743782977098,6.532,1792.2,1792.0,5.58008]
[1743782977393,6.532,1792.2,1792.1,6.35574]
[1743782977582,6.53,1792.5,1792.2,5.5796]
[1743782977804,7.084755,1792.8,1792.4,5.57911]
[1743782978127,7.084755,1792.8,1792.5,0.8091]
[1743782978128,5.57848,1792.6,1792.5,0.8091]
[1743782978335,5.57939,1792.4,1792.2,0.7747]
[1743782978498,0.55,1792.6,1792.2,6.35432]
[1743782978824,7.116,1792.6,1792.3,5.57922]
[1743782979037,6.566,1792.6,1792.4,5.57897]
[1743782979238,3.0,1792.7,1792.5,5.5788]
[1743782979387,9.562,1792.7,1792.2,6.35441]
[1743782979582,9.562,1792.7,1792.6,6.38318]
[1743782979583,6.562,1792.7,1792.6,6.38318]
[1743782979784,6.561,1793.0,1792.8,5.57774]
[1743782979979,6.561,1793.0,1792.9,5.57755]
[1743782980443,11.15163,1793.5,1793.1,5.57672]
[1743782980621,6.555,1793.4,1793.1,5.57672]
[1743782980789,6.555,1793.4,1792.9,0.81596954]
[1743782981128,6.555,1793.4,1793.1,5.57688]
[1743782981332,6.555,1793.4,1793.1,11.15361]
[1743782981497,6.555,1793.4,1793.1,11.15349]
[1743782981690,6.555,1793.4,1793.2,11.15286]
[1743782981891,6.555,1793.4,1793.2,5.57641]
[1743782982091,6.555,1793.4,1793.1,5.57688]
[1743782982290,6.555,1793.4,1793.1,5.57675]
[1743782982585,6.555,1793.4,1793.2,5.5766]
[1743782982805,6.555,1793.4,1793.3,6.33921]
[1743782983491,6.586,1793.9,1793.8,6.33765]
[1743782983700,0.05,1793.9,1793.8,6.33765]
[1743782985637,5.57249,1794.6,1793.8,6.33765]
[1743782985638,5.57196,1794.7,1794.4,5.57287]
[1743782985795,6.532,1794.6,1794.4,6.33857]
[1743782985983,3.0,1794.5,1794.4,6.33859]
[1743782986200,6.532,1794.6,1794.5,5.57258]
[1743782986395,5.57258,1794.5,1794.4,0.7657]
[1743782986607,5.57258,1794.5,1794.1,0.8313]
[1743782986608,0.55,1794.4,1794.1,0.8313]
[1743782986796,0.55,1794.4,1794.2,5.57335]
[1743782986997,7.081,1794.4,1794.1,6.40496]
[1743782987200,6.531,1794.4,1794.2,5.5735]
[1743782987818,5.57332,1794.3,1794.1,0.8313]
[1743782988012,18.3301,1794.4,1794.1,0.8313]
[1743782988209,7.1841,1794.4,1794.1,0.8313]
[1743782988389,5.57344,1794.3,1794.1,0.8313]
[1743782988918,12.75702,1794.4,1794.1,0.8313]
[1743782989131,6.531,1794.4,1794.2,5.57346]
[1743782989291,6.531,1794.4,1794.1,11.97867]
[1743782989492,6.531,1794.4,1794.2,5.5734]
[1743782989692,6.531,1794.4,1794.3,5.5732]
[1743782989891,20.66516,1794.7,1794.3,5.5732]
[1743782990120,3.0,1794.5,1794.3,5.5732]
[1743782990319,3.0,1794.5,1794.1,0.8313]
[1743782990523,3.0,1794.5,1794.2,5.5735]
[1743782990687,3.0,1794.5,1794.2,5.57351]
[1743782991019,8.57268,1794.5,1794.1,6.4051]
[1743782991188,0.55,1794.4,1794.1,6.40499]
[1743782991392,3.857268,1794.5,1794.1,0.8313]
[1743782991692,5.57317,1794.4,1794.1,0.8313]
[1743782992004,0.55,1794.3,1794.1,0.8313]
[1743782992214,0.55,1794.3,1794.1,6.40487]
[1743782992526,0.55,1794.3,1794.1,0.8313]
[1743782992965,6.52,1794.2,1794.1,0.8313]
[1743782993163,6.52,1794.2,1794.1,6.40512]
[1743782993323,6.52,1794.2,1794.1,0.8313]
[1743782994023,5.57415,1794.0,1793.8,0.8258]
[1743782994241,0.55,1794.0,1793.8,0.8258]
[1743782994868,7.293958,1794.0,1793.6,6.36533]
[1743782995550,12.868298,1794.0,1793.6,6.36529]
[1743782995944,4.719798,1794.0,1793.6,0.7901]
[1743782996140,3.0,1794.0,1793.7,5.57494]
[1743782996346,3.0,1794.0,1793.8,5.57463]
[1743782996850,0.612304,1794.3,1793.7,5.57496]
[1743782997051,3.0,1794.3,1794.0,5.57393]
[1743782997252,7.78970217,1794.5,1794.1,0.7845]
[1743782997437,7.377268,1794.5,1794.2,5.57324]
[1743782997634,7.377268,1794.5,1794.3,5.57314]
[1743782997845,12.09258,1794.5,1794.2,5.57324]
[1743782998164,12.09258,1794.5,1794.1,11.93196]
[1743782998320,12.09258,1794.5,1794.1,6.35817]
[1743782998523,5.57302,1794.4,1794.1,0.7845]
[1743782998753,1.209258,1794.4,1794.1,6.35831]
[1743782998951,1.209258,1794.4,1794.1,11.93203]
[1743782999133,6.52,1794.5,1794.2,5.57331]
[1743782999454,12.09265,1794.5,1794.2,5.57331]
[1743782999827,12.09262,1794.5,1794.2,5.57331]
[1743783000023,6.52,1794.5,1794.2,5.57331]
[1743783000257,3.0,1794.5,1794.1,0.7845]
[1743783000550,8.57366,1794.2,1793.8,6.32831]
[1743783000718,9.519,1794.2,1794.0,5.57395]
[1743783001077,3.0,1794.5,1794.3,0.7757]
[1743783001371,3.0,1794.5,1794.0,0.807]
[1743783001372,5.57365,1794.2,1794.0,0.807]
[1743783001552,5.57421,1794.0,1793.7,6.38193]
[1743783001754,1.114803,1794.0,1793.5,0.7939]
[1743783001965,5.57551,1793.6,1793.2,6.37042]
[1743783002280,6.519,1793.6,1793.3,5.57631]
[1743783002431,6.519,1793.6,1793.3,5.57615]
[1743783002629,6.519,1793.6,1793.5,5.57568]
[1743783002859,10.86402999,1794.2,1793.5,5.57568]
[1743783002860,5.57399,1794.1,1793.5,5.57568]
[1743783003067,6.519,1794.0,1793.8,5.57475]
[1743783003246,3.0,1794.2,1794.1,5.57382]
[1743783003448,3.0,1794.2,1793.8,5.57464]
[1743783003449,5.57367,1794.2,1793.8,5.57464]
[1743783003783,9.12362,1794.2,1793.8,5.57463]
[1743783003930,5.57393,1794.1,1793.7,6.36923]
[1743783004131,5.57384,1794.1,1793.8,5.57465]
[1743783004331,5.57383,1794.1,1793.8,5.57458]
[1743783004565,5.121603,1794.2,1793.7,6.36921]
[1743783004876,5.121603,1794.2,1793.2,8.99952682]
[1743783004877,6.519,1794.4,1794.2,6.33063]
[1743783005078,12.0921,1794.4,1794.2,0.7574]
[1743783005376,1.20921,1794.3,1794.0,5.57402]
[1743783005577,5.57207,1794.7,1794.3,5.57299]
[1743783005578,5.57201,1794.7,1794.3,5.57299]
[1743783005735,5.62135,1794.9,1794.6,5.57217]
[1743783006071,5.57196,1794.7,1794.3,6.34644]
[1743783006276,8.62135,1794.9,1794.5,11.14481]
[1743783006471,0.05,1794.9,1794.3,0.7734]
[1743783006638,0.05,1794.9,1794.5,5.57237]
[1743783006968,3.05,1794.9,1794.7,5.57192]
[1743783007154,0.51029229,1794.8,1794.3,6.3466]
[1743783007469,0.51029229,1794.8,1794.7,5.57196]
[1743783007771,0.51029229,1794.8,1794.6,5.572]
[1743783007938,0.51029229,1794.8,1794.7,5.57196]
[1743783008138,0.05,1794.9,1794.8,5.57165]
[1743783008746,0.05,1794.9,1794.7,6.40096]
[1743783009067,5.62149,1794.9,1794.7,0.829]
[1743783009363,0.05,1794.9,1794.7,6.40096]
[1743783009770,0.05,1794.9,1794.7,0.829]
[1743783009966,0.05,1794.9,1794.4,0.7644]
[1743783010149,0.05,1794.9,1794.5,5.57256]
[1743783010345,5.62135,1794.9,1794.5,11.14496]
[1743783010553,6.238485,1794.9,1794.6,5.57224]
[1743783010737,6.238485,1794.9,1794.5,5.5724]
[1743783010945,11.810025,1794.9,1794.5,5.5724]
[1743783011145,5.57192,1794.8,1794.4,11.91002]
[1743783011456,11.14377,1794.8,1794.4,6.33717]
[1743783011686,5.57237,1794.6,1794.4,0.7644]
[1743783011844,7.632377,1794.7,1794.4,6.3372]
[1743783012255,5.57231,1794.6,1794.4,0.7644]
[1743783012454,7.632377,1794.7,1794.4,0.7644]
[1743783012682,6.518,1794.7,1794.4,6.33727]
[1743783012984,5.57289,1794.4,1793.9,0.7844]
[1743783013158,11.14808,1794.1,1793.7,5.57493]
[1743783013356,12.09203,1794.1,1793.7,11.14984]
[1743783013555,5.57424,1794.0,1793.6,6.35663]
[1743783013755,5.57446,1793.9,1793.6,6.35663]
[1743783013989,3.55,1794.0,1793.6,0.7813]
[1743783014156,5.57457,1793.9,1793.6,0.7813]
[1743783014355,5.57477,1793.8,1793.4,5.57584]
[1743783014594,5.57477,1793.8,1793.3,0.7865]
[1743783014595,1.114922,1793.8,1793.3,0.7865]
[1743783014757,5.57551,1793.6,1793.3,0.7865]
[1743783014972,5.57551,1793.6,1793.2,11.15293]
[1743783014973,6.518,1793.5,1793.2,5.57643]
[1743783015171,6.518,1793.5,1793.1,5.57689]
[1743783015498,8.57613,1793.4,1792.9,5.57735]
[1743783015660,3.0,1793.4,1793.1,5.57692]
[1743783015985,12.09379,1793.5,1793.1,5.57682]
[1743783016188,12.09379,1793.5,1793.2,5.57661]
[1743783016189,6.518,1793.5,1793.2,5.57661]
[1743783016380,6.518,1793.5,1793.0,5.57723]
[1743783016578,6.518,1793.5,1793.4,5.576]
[1743783016754,5.6951318,1793.7,1793.4,5.576]
[1743783016953,5.6951318,1793.7,1793.4,5.57583]
[1743783017171,5.6951318,1793.7,1793.4,5.5758]
[1743783017566,5.6951318,1793.7,1793.3,6.33087]
[1743783017567,11.2702818,1793.7,1793.3,6.33087]
[1743783017793,11.2702818,1793.7,1793.3,11.90694]
[1743783018094,5.6951318,1793.7,1793.5,5.57545]
[1743783018471,5.6951318,1793.7,1793.6,5.57537]
[1743783018668,5.6951318,1793.7,1793.6,6.690452]
[1743783018993,1.8e-06,1793.7,1793.6,7.53589979]
[1743783019287,3.53e-06,1793.8,1793.6,11.95710199]
[1743783019487,6.519,1794.6,1794.4,5.57262]
[1743783019990,6.519,1794.6,1794.3,0.7897]
[1743783019991,6.519,1794.6,1794.5,5.57258]
[1743783020197,6.519,1794.6,1794.3,6.41859521]
[1743783020198,6.569,1794.9,1794.7,5.57182]
[1743783020511,6.569,1794.9,1794.5,5.57253]
[1743783020827,6.569,1794.9,1794.6,11.1442]
[1743783021098,0.05,1794.9,1794.8,5.57165]
[1743783021597,1e-05,1794.9,1794.8,10.92401273]
[1743783021909,17.05680522,1795.9,1795.8,5.56854]
[1743783022069,17.05680522,1795.9,1795.8,6.125394]
[1743783022261,17.05680522,1795.9,1795.8,6.98667292]
[1743783022463,17.05680522,1795.9,1795.8,6.930994]
[1743783023074,17.05680522,1795.9,1795.8,6.37414]
[1743783024173,17.05680522,1795.9,1795.8,0.8056]
[1743783024365,17.05680522,1795.9,1795.8,6.37414]
[1743783024777,0.05,1795.9,1795.8,6.37414]
[1743783025370,0.05,1795.9,1795.7,5.56863]
[1743783026202,5.61842,1795.9,1795.4,5.56978]
[1743783026366,0.611842,1795.9,1795.4,5.56964]
[1743783026568,0.05,1795.9,1795.5,5.56921]
[1743783026968,0.05,1795.9,1795.7,5.5688]
[1743783027172,0.05,1795.9,1795.6,5.56901]
[1743783027374,0.05,1795.9,1795.2,5.57025]
[1743783027608,5.56935,1795.6,1795.1,6.35844]
[1743783027773,3.0,1795.6,1795.2,5.57022]
[1743783027980,6.514,1795.7,1795.4,5.56951]
[1743783028187,0.05,1795.9,1795.5,5.56947]
[1743783028406,0.05,1795.9,1795.5,5.56936]
[1743783028708,0.05,1795.9,1795.8,6.31854]
[1743783028897,0.05,1795.9,1795.8,6.37421434]
[1743783029101,0.05,1795.9,1795.8,7.51282643]
[1743783029606,5.56592,1796.7,1796.3,5.56696]
[1743783029818,11.13197,1796.7,1796.2,5.56705]
[1743783030110,5.56558,1796.8,1796.3,5.56692]
[1743783030333,5.56591,1796.7,1796.2,5.56705]
[1743783030517,5.56591,1796.7,1796.1,5.56761]
[1743783030518,5.56627,1796.6,1796.1,5.56761]
[1743783030752,5.56627,1796.6,1796.2,5.56726]
[1743783030893,37.20321,1796.9,1796.4,5.56646]
[1743783031093,12.12921,1796.9,1796.4,5.56646]
[1743783031294,5.56546,1796.8,1796.4,5.56646]
[1743783031495,5.566,1796.7,1796.2,5.56704]
[1743783031721,5.566,1796.7,1796.2,11.1341]
[1743783031930,4.769467,1796.8,1796.4,5.56654]
[1743783032136,7.335057,1796.8,1796.3,5.56691]
[1743783032448,3.43237566,1796.7,1796.5,5.5662]
[1743783032642,3.43237566,1796.7,1796.6,5.56606]
[1743783033223,3.43237566,1796.7,1796.4,6.37016]
[1743783033406,3.43237566,1796.7,1796.4,5.56646]
[1743783033603,3.43237566,1796.7,1796.6,5.56606]
[1743783033806,3.43237566,1796.7,1796.6,6.13378084]
[1743783034007,3.43237566,1796.7,1796.6,6.1894344]
[1743783034209,3.43237566,1796.7,1796.6,5.56606]
[1743783034540,0.05,1796.9,1796.8,5.56544]
[1743783034839,0.05,1796.9,1796.8,6.31674]
[1743783035142,0.05,1796.9,1796.8,6.37238115]
[1743783035338,0.05,1796.9,1796.8,6.31674]
[1743783035546,3.43237566,1797.2,1797.1,5.56452]
[1743783036120,3.43237566,1797.2,1797.1,6.38592]
[1743783037412,0.05,1797.9,1797.7,5.56261]
[1743783037804,0.05,1797.9,1797.6,5.56296]
[1743783038433,5.61215,1797.9,1797.5,5.5632]
[1743783038636,5.61215,1797.9,1797.5,11.12632]
[1743783038851,0.05,1797.9,1797.6,5.56296]
[1743783039058,0.05,1797.9,1797.6,11.12572]
[1743783039239,0.05,1797.9,1797.6,5.56276]
[1743783039547,5.61216,1797.9,1797.5,5.56326]
[1743783039751,5.61216,1797.9,1797.1,12.89575]
[1743783039752,5.56316,1797.6,1797.1,6.38589]
[1743783039953,0.611216,1797.9,1797.8,5.56235]
[1743783040151,0.05,1797.9,1797.8,6.32645]
[1743783040447,0.05,1797.9,1797.8,7.51535]
[1743783040616,0.28967565,1799.2,1799.0,5.55851]
[1743783040817,6.0,1800.6,1799.8,0.8332]
[1743783041022,5.5537,1800.6,1800.2,4.47694999]
[1743783041228,0.28955673,1800.6,1800.3,0.8332]
[1743783041433,0.91614445,1800.9,1800.5,4.47694999]
[1743783041632,6.0,1801.2,1800.9,0.8096]
[1743783041955,16.34247688,1801.4,1801.3,5.55154]
[1743783042449,0.05,1802.9,1801.4,5.55123]
[1743783042653,0.05,1802.9,1802.4,10.02507999]
[1743783042825,0.05,1802.9,1802.7,5.54693]
[1743783043031,0.05,1802.9,1802.8,5.54692]
[1743783043234,0.05,1802.9,1802.8,8.54692]
[1743783043423,0.005,1803.7,1803.1,5.5459]
[1743783043628,0.005,1803.7,1803.2,5.54569]
[1743783043854,0.005,1803.7,1803.3,5.54533]
[1743783044067,0.005,1803.7,1803.2,5.54559]
[1743783044360,31.743,1803.7,1802.9,5.54641]
[1743783044558,3.1743,1803.6,1802.5,4.47694999]
[1743783044726,3.7854,1803.5,1802.4,0.7971]
[1743783044932,3.7854,1803.5,1802.5,5.54777]
[1743783045284,3.7854,1803.5,1802.0,5.54934]
[1743783045285,3.0,1803.1,1801.9,0.7758]
[1743783045430,8.54545,1803.3,1802.2,5.5485]